bitfinex-derivatives/quotes_SOLF0:USTF0_20250416
["timestamp","ask_amount","ask_price","bid_price","bid_amount"]
[1744784959735,0.05804109,125.71,125.68,38.9027643]
[1744784959926,0.05804109,125.71,125.69,7.9564]
[1744784963138,0.05804109,125.71,125.68,38.9027643]
[1744784964140,0.05804109,125.71,125.7,7.956]
[1744784967142,0.05804109,125.71,125.69,7.9564]
[1744784969646,0.05804109,125.71,125.68,38.9027643]
[1744784970449,0.05804109,125.71,125.7,7.956]
[1744784971551,0.05804109,125.71,125.68,0.05946359]
[1744784971752,6.76330071,125.7,125.68,0.05946359]
[1744784972650,7.9567,125.69,125.68,0.05946359]
[1744784983259,7.9563,125.7,125.68,8.01666359]
[1744784985956,0.05804109,125.71,125.68,6.8227643]
[1744784986259,0.05804109,125.71,125.7,6.76330071]
[1744784986760,0.05804109,125.71,125.7,14.71930071]
[1744784987962,0.05804109,125.71,125.7,6.76330071]
[1744784988861,0.05804109,125.71,125.68,46.8000643]
[1744784989462,8.01374109,125.71,125.68,46.8000643]
[1744784989863,7.9563,125.7,125.68,38.8427643]
[1744784990564,0.05804109,125.71,125.68,38.8427643]
[1744784992065,0.05804109,125.71,125.68,6.8227643]
[1744784995169,7.9567,125.69,125.68,6.8227643]
[1744784998069,7.9567,125.69,125.68,0.05946359]
[1744785000371,8.96710071,125.7,125.65,38.78330071]
[1744785000867,8.96710071,125.7,125.65,46.74240071]
[1744785001266,2.2038,125.7,125.66,14.72150071]
[1744785001574,0.05431081,125.69,125.68,6.76330071]
[1744785001873,0.05431081,125.69,125.68,14.72060071]
[1744785002172,0.05431081,125.69,125.68,6.76330071]
[1744785003775,0.05431081,125.69,125.68,14.72060071]
[1744785005477,6.76330071,125.77,125.71,7.955]
[1744785005672,6.76330071,125.76,125.71,6.76330071]
[1744785005873,6.76330071,125.74,125.69,6.76330071]
[1744785006578,7.9553,125.72,125.7,0.05941581]
[1744785006780,0.05248624,125.73,125.7,0.05941581]
[1744785007178,7.9553,125.72,125.7,0.05941581]
[1744785011077,8.00688624,125.73,125.71,6.76330071]
[1744785012184,8.00688624,125.73,125.71,14.71850071]
[1744785014581,8.00688624,125.73,125.71,6.76330071]
[1744785015885,0.05248624,125.73,125.7,0.05941581]
[1744785016082,6.81578695,125.73,125.7,0.05941581]
[1744785016980,7.9554,125.72,125.7,0.05941581]
[1744785018492,0.05248624,125.73,125.7,0.05941581]
[1744785018680,0.05248624,125.73,125.71,6.76330071]
[1744785019186,8.00698624,125.73,125.71,7.9554]
[1744785019388,0.05248624,125.73,125.72,6.76330071]
[1744785019986,0.05248624,125.73,125.72,14.71810071]
[1744785020283,0.05248624,125.73,125.71,38.70330071]
[1744785020788,0.05248624,125.73,125.72,7.9548]
[1744785022691,0.05248624,125.73,125.72,14.71810071]
[1744785034701,7.9519,125.77,125.74,7.9529]
[1744785034904,7.9519,125.77,125.74,38.70330071]
[1744785035694,4.2186,125.82,125.76,6.76330071]
[1744785035995,4.2186,125.82,125.78,6.76330071]
[1744785036188,0.05741822,125.8,125.78,14.77323743]
[1744785036388,0.05741822,125.8,125.78,0.05933672]
[1744785037400,8.00741822,125.8,125.78,0.05933672]
[1744785039103,7.9503,125.79,125.78,0.05933672]
[1744785040495,0.05741822,125.8,125.78,0.05933672]
[1744785041003,0.05741822,125.8,125.79,7.9503]
[1744785042005,0.05741822,125.8,125.79,14.71360071]
[1744785045702,31.86,125.87,125.79,6.76330071]
[1744785045903,31.86,125.87,125.82,6.76330071]
[1744785046614,7.9469,125.85,125.82,14.71130071]
[1744785046907,7.9469,125.85,125.83,0.05276646]
[1744785047402,8.00448911,125.86,125.83,0.05276646]
[1744785047907,8.00448911,125.86,125.83,8.00026646]
[1744785048113,8.00448911,125.86,125.83,0.05276646]
[1744785048306,0.05828911,125.86,125.83,0.05276646]
[1744785048610,0.05828911,125.86,125.84,6.76330071]
[1744785049109,0.05828911,125.86,125.85,7.9466]
[1744785052807,0.05828911,125.86,125.85,14.70990071]
[1744785060215,0.05828911,125.86,125.85,7.9466]
[1744785060412,6.82158982,125.86,125.83,31.91276646]
[1744785060708,6.76330071,125.84,125.83,0.05276646]
[1744785060914,6.76330071,125.84,125.75,379.98]
[1744785060915,6.76330071,125.84,125.77,610.98330071]
[1744785061117,6.76330071,125.78,125.74,31.86]
[1744785061313,2.0993,125.83,125.74,31.86]
[1744785061314,14.71620071,125.76,125.74,31.86]
[1744785061509,14.71620071,125.76,125.73,7.954]
[1744785061713,7.9529,125.76,125.72,6.76330071]
[1744785061915,7.9529,125.76,125.73,6.76330071]
[1744785062114,0.05823028,125.75,125.73,6.81398055]
[1744785062417,0.05823028,125.75,125.73,8.00457984]
[1744785062817,0.05823028,125.75,125.73,0.05067984]
[1744785063119,0.05823028,125.75,125.74,7.9535]
[1744785063422,0.05823028,125.75,125.73,0.05067984]
[1744785064519,0.05823028,125.75,125.73,8.00447984]
[1744785065212,0.05823028,125.75,125.74,7.9535]
[1744785067322,0.05823028,125.75,125.74,39.7535]
[1744785068724,31.8,125.84,125.74,39.76]
[1744785069021,35.9775,125.87,125.78,10.59376052]
[1744785069223,35.9775,125.87,125.79,31.8]
[1744785069824,0.05742574,125.82,125.8,8.00621299]
[1744785071328,8.00592574,125.82,125.8,0.05681299]
[1744785073128,0.05742574,125.82,125.8,0.05681299]
[1744785074023,10.65118626,125.82,125.75,31.8]
[1744785074328,4.2559,125.81,125.75,31.8]
[1744785075029,8.00210938,125.79,125.77,0.05582551]
[1744785076230,7.951,125.78,125.77,0.05582551]
[1744785076525,0.05140938,125.79,125.72,42.39376052]
[1744785076729,42.39376052,125.8,125.72,31.8]
[1744785076924,42.39376052,125.8,125.72,42.39376052]
[1744785077231,10.59376052,125.8,125.72,42.39376052]
[1744785077524,7.9513,125.78,125.75,7.9528]
[1744785077829,0.05979971,125.77,125.75,8.01284176]
[1744785078834,0.05979971,125.77,125.76,7.9522]
[1744785079432,0.05979971,125.77,125.75,0.06004176]
[1744785079730,0.05979971,125.77,125.76,10.59376052]
[1744785079922,2.0993,125.83,125.8,7.9494]
[1744785080322,10.0476,125.83,125.8,7.9494]
[1744785080533,2.0993,125.83,125.79,7.95]
[1744785080922,8.00137497,125.82,125.8,0.05561506]
[1744785082733,7.9491,125.81,125.8,0.05561506]
[1744785083131,8.00167497,125.82,125.8,0.05561506]
[1744785084131,7.9491,125.81,125.8,0.05561506]
[1744785084329,10.59376052,125.81,125.74,31.8]
[1744785084529,7.9501,125.8,125.77,7.9513]
[1744785085534,8.00064326,125.8,125.77,8.00283475]
[1744785085733,8.00064326,125.8,125.78,7.951]
[1744785086338,0.05054326,125.8,125.77,31.85153475]
[1744785087038,0.05054326,125.8,125.78,7.9505]
[1744785093648,0.05054326,125.8,125.77,31.85153475]
[1744785094140,0.05054326,125.8,125.79,7.9503]
[1744785095649,7.9481,125.83,125.8,7.9493]
[1744785095846,46.59626052,125.87,125.78,10.59376052]
[1744785096043,36.0025,125.87,125.8,42.35376052]
[1744785096245,7.9469,125.85,125.82,7.9481]
[1744785096849,0.05200089,125.85,125.82,0.05698203]
[1744785097351,7.99890089,125.85,125.82,8.00508203]
[1744785097548,0.05200089,125.85,125.82,0.05698203]
[1744785097744,10.64576141,125.85,125.82,0.05698203]
[1744785097944,7.9478,125.83,125.82,0.05698203]
[1744785100148,0.05200089,125.85,125.82,0.05698203]
[1744785101152,7.9473,125.84,125.82,0.05698203]
[1744785101454,0.05200089,125.85,125.82,0.05698203]
[1744785101753,7.9478,125.83,125.82,0.05698203]
[1744785102355,7.9475,125.84,125.82,0.05698203]
[1744785103949,0.05200089,125.85,125.82,0.05698203]
[1744785104152,0.05200089,125.85,125.82,8.00538203]
[1744785104345,7.99900089,125.85,125.82,8.00538203]
[1744785104548,0.05200089,125.85,125.82,0.05698203]
[1744785105453,7.9478,125.83,125.82,0.05698203]
[1744785108458,0.05200089,125.85,125.82,0.05698203]
[1744785109059,7.9475,125.84,125.82,0.05698203]
[1744785110161,7.99890089,125.85,125.82,8.00528203]
[1744785111363,7.9474,125.84,125.82,8.00528203]
[1744785111565,7.9474,125.84,125.82,0.05698203]
[1744785111758,0.05200089,125.85,125.82,0.05698203]
[1744785112259,7.9472,125.84,125.82,0.05698203]
[1744785113161,7.9478,125.83,125.82,0.05698203]
[1744785115775,0.05200089,125.85,125.82,6.82909913]
[1744785116063,0.05200089,125.85,125.84,6.7721171]
[1744785116669,0.05200089,125.85,125.84,14.7193171]
[1744785117974,6.7721171,125.9,125.87,7.9448]
[1744785118174,6.7721171,125.92,125.86,6.7721171]
[1744785118374,6.7721171,125.92,125.86,38.5121171]
[1744785118571,7.9428,125.91,125.88,7.9442]
[1744785118775,4.1533,125.93,125.88,6.7721171]
[1744785119275,0.05933841,125.92,125.9,7.9431]
[1744785119477,0.05933841,125.92,125.89,0.05645505]
[1744785120175,8.00153841,125.92,125.89,7.99995505]
[1744785120476,0.05933841,125.92,125.89,0.05645505]
[1744785120876,0.05933841,125.92,125.9,7.9431]
[1744785121079,0.05933841,125.92,125.89,42.36265339]
[1744785121579,0.05933841,125.92,125.91,7.9428]
[1744785124173,16.67349834,125.98,125.93,7.9413]
[1744785124377,16.67349834,125.98,125.92,31.74]
[1744785124977,16.67349834,125.98,125.92,39.6818]
[1744785125174,16.67349834,125.98,125.92,31.74]
[1744785125378,10.61745446,125.96,125.94,0.0584578]
[1744785126484,7.9405,125.95,125.94,0.0584578]
[1744785128885,42.29745446,125.96,125.89,39.6237]
[1744785129085,42.24619834,125.96,125.89,39.6237]
[1744785129586,7.942,125.93,125.9,7.9433]
[1744785129887,0.05648841,125.93,125.9,0.05157631]
[1744785131190,0.05648841,125.93,125.92,7.9417]
[1744785135492,0.05648841,125.93,125.92,39.6017]
[1744785136988,0.05648841,125.93,125.92,31.66]
[1744785138296,0.05648841,125.93,125.92,39.6021]
[1744785141194,0.05648841,125.93,125.92,46.36160728]
[1744785142299,6.1073,125.98,125.95,7.9402]
[1744785142503,4.0323,125.98,125.94,6.75950728]
[1744785142696,2.2037,126.02,125.95,31.66]
[1744785142901,7.9368,126.01,125.98,7.9384]
[1744785143104,2.2037,126.02,125.97,6.75950728]
[1744785143400,6.75950728,126.0,125.96,31.66]
[1744785143600,6.75950728,126.0,125.98,0.05776825]
[1744785143800,14.69750728,125.99,125.98,0.05776825]
[1744785145205,7.938,125.99,125.98,0.05776825]
[1744785148102,7.9397,125.96,125.93,31.66]
[1744785148493,7.9397,125.96,125.93,39.6011]
[1744785149204,7.99357471,125.96,125.93,39.66104133]
[1744785149400,7.9404,125.95,125.93,31.71994133]
[1744785149593,0.05387471,125.96,125.93,31.71994133]
[1744785149798,2.08057471,125.96,125.9,31.66]
[1744785150096,7.9412,125.94,125.91,7.9425]
[1744785150291,2.08057471,125.96,125.9,31.66]
[1744785150492,2.08057471,125.96,125.87,10.5575908]
[1744785150493,10.5575908,125.95,125.87,42.2175908]
[1744785150701,14.8681908,125.95,125.87,42.2175908]
[1744785150902,0.05759154,125.92,125.9,0.05033281]
[1744785151096,8.00019154,125.92,125.9,0.05033281]
[1744785153107,7.9428,125.91,125.9,0.05033281]
[1744785154104,0.05759154,125.92,125.9,31.71033281]
[1744785154506,0.05759154,125.92,125.9,39.65323281]
[1744785157109,0.05759154,125.92,125.91,7.9428]
[1744785157910,0.05759154,125.92,125.9,31.71033281]
[1744785158308,0.05759154,125.92,125.91,7.9428]
[1744785159403,31.6,125.99,125.91,10.5575908]
[1744785159604,31.6,125.99,125.93,10.5575908]
[1744785159804,31.6,125.99,125.93,42.1575908]
[1744785160105,39.5381,125.99,125.93,42.1575908]
[1744785160505,0.05404736,125.97,125.95,0.05879805]
[1744785161005,0.05404736,125.97,125.96,7.9394]
[1744785164608,2.0524,126.0,125.99,7.9377]
[1744785164809,6.3893,126.04,125.97,10.5575908]
[1744785165309,6.3893,126.04,126.02,7.9354]
[1744785165609,6.3893,126.04,125.99,31.6]
[1744785165810,6.43987918,126.04,126.02,0.05720756]
[1744785166809,6.43987918,126.04,126.02,7.99290756]
[1744785167210,6.43987918,126.04,126.02,0.05720756]
[1744785169110,7.9352,126.03,126.02,0.05720756]
[1744785170404,6.43987918,126.04,126.02,0.05720756]
[1744785170606,14.37477918,126.04,126.02,0.05720756]
[1744785172508,7.9352,126.03,126.02,0.05720756]
[1744785172908,6.43987918,126.04,125.96,42.1575908]
[1744785173108,6.3893,126.04,125.96,42.1575908]
[1744785173613,7.9362,126.02,125.96,42.1575908]
[1744785174115,0.05151086,126.0,125.98,0.05298186]
[1744785175211,0.05151086,126.0,125.99,7.9374]
[1744785177107,0.05151086,126.0,125.99,14.68898012]
[1744785178814,8.96058012,126.04,126.01,7.9359]
[1744785179215,16.89548012,126.04,126.01,7.9359]
[1744785179913,16.95004051,126.04,126.01,7.98662292]
[1744785180817,10.19846039,126.04,126.01,7.98662292]
[1744785181221,7.9352,126.03,126.01,0.05072292]
[1744785183919,10.19846039,126.04,126.01,7.98712292]
[1744785184219,9.01514051,126.04,126.01,0.05072292]
[1744785184516,7.9352,126.03,126.01,0.05072292]
[1744785187026,16.95014051,126.04,126.01,7.98722292]
[1744785187324,10.19856039,126.04,126.01,7.98722292]
[1744785189027,7.9353,126.03,126.01,7.98722292]
[1744785189529,10.19846039,126.04,126.01,7.98722292]
[1744785189823,2.26356039,126.04,126.02,7.9358]
[1744785190125,10.19846039,126.04,126.01,0.05072292]
[1744785190319,10.19846039,126.04,126.01,7.98682292]
[1744785190933,9.9339,126.07,126.01,6.80230304]
[1744785191123,2.002,126.14,126.06,6.75158012]
[1744785191324,6.75158012,126.11,126.06,6.75158012]
[1744785191527,7.9318,126.09,126.05,14.68498012]
[1744785191726,6.75158012,126.08,126.03,6.75158012]
[1744785191925,6.75158012,126.07,126.02,38.29158012]
[1744785192127,14.68468012,126.07,126.03,7.9347]
[1744785192530,6.80305725,126.06,126.04,0.05055798]
[1744785193334,14.73685725,126.06,126.04,0.05055798]
[1744785197137,38.27158012,126.05,125.99,6.75158012]
[1744785197331,6.75158012,126.04,125.99,6.75158012]
[1744785197537,14.68718012,126.03,125.99,7.9375]
[1744785198333,0.05229148,126.02,126.0,0.05441285]
[1744785198534,0.05229148,126.02,126.0,7.99141285]
[1744785200443,6.75158012,126.01,126.0,0.05441285]
[1744785200743,6.75158012,126.01,125.94,6.75158012]
[1744785200943,14.68978012,125.99,125.95,7.9399]
[1744785201143,6.75158012,125.98,125.93,6.75158012]
[1744785201542,38.27158012,125.99,125.93,6.75158012]
[1744785201742,0.05823764,125.97,125.94,14.75075794]
[1744785201944,0.05823764,125.97,125.95,6.75158012]
[1744785202844,0.05823764,125.97,125.95,14.69148012]
[1744785203239,0.05823764,125.97,125.95,6.75158012]
[1744785204644,0.05823764,125.97,125.94,0.05847782]
[1744785205341,7.99753764,125.97,125.94,0.05847782]
[1744785205541,6.80981776,125.97,125.94,0.05847782]
[1744785206346,7.9402,125.95,125.94,0.05847782]
[1744785206847,14.69178012,125.95,125.94,0.05847782]
[1744785207237,7.9402,125.95,125.94,0.05847782]
[1744785209248,31.54,125.96,125.94,0.05847782]
[1744785210047,7.94,125.96,125.94,0.05847782]
[1744785210253,0.05823764,125.97,125.95,6.75158012]
[1744785212151,0.05823764,125.97,125.94,14.75065794]
[1744785212953,0.05823764,125.97,125.95,7.9402]
[1744785213153,0.05823764,125.97,125.95,14.69178012]
[1744785213453,0.05823764,125.97,125.96,14.69118012]
[1744785214251,0.05823764,125.97,125.96,6.75158012]
[1744785214452,0.05823764,125.97,125.95,14.69158012]
[1744785217952,0.05823764,125.97,125.96,14.69118012]
[1744785218945,31.54,126.0,125.98,7.9382]
[1744785219151,31.5,126.03,125.99,6.75158012]
[1744785219554,39.4356,126.03,126.0,7.9368]
[1744785220052,39.49403375,126.03,126.0,7.99634224]
[1744785220748,7.936,126.02,126.0,0.05954224]
[1744785221951,14.68808012,126.01,126.0,0.05954224]
[1744785222152,6.75158012,126.01,125.94,6.75158012]
[1744785222357,6.75158012,125.99,125.94,6.75158012]
[1744785222957,7.9387,125.98,125.95,7.9399]
[1744785223149,7.9387,125.98,125.95,8.00030065]
[1744785223356,7.98953484,125.98,125.95,8.00030065]
[1744785224152,0.05083484,125.98,125.96,7.9396]
[1744785225757,0.05083484,125.98,125.95,8.00030065]
[1744785227858,7.98933484,125.98,125.95,0.06040065]
[1744785229061,7.98933484,125.98,125.95,8.00010065]
[1744785229661,7.939,125.97,125.95,8.00040065]
[1744785229861,7.939,125.97,125.95,0.06040065]
[1744785230263,7.939,125.97,125.95,8.00060065]
[1744785231864,7.98953484,125.98,125.95,8.00060065]
[1744785232062,0.05083484,125.98,125.95,0.06040065]
[1744785232563,0.05083484,125.98,125.95,8.00050065]
[1744785233165,7.98953484,125.98,125.95,8.00050065]
[1744785233464,0.05083484,125.98,125.95,0.06040065]
[1744785234165,7.9393,125.97,125.95,0.06040065]
[1744785235967,7.98943484,125.98,125.95,8.00060065]
[1744785236668,0.05083484,125.98,125.96,7.9396]
[1744785240070,0.05083484,125.98,125.95,8.00030065]
[1744785241266,7.9393,125.97,125.95,0.06040065]
[1744785241475,0.05083484,125.98,125.95,0.06040065]
[1744785241866,7.98963484,125.98,125.95,8.00010065]
[1744785242371,0.05083484,125.98,125.95,8.00010065]
[1744785242573,7.98923484,125.98,125.95,8.00010065]
[1744785243173,7.98923484,125.98,125.95,14.75608054]
[1744785244574,0.05083484,125.98,125.95,6.81638054]
[1744785244873,31.5,126.04,125.97,6.75597989]
[1744785245073,6.75597989,126.05,125.99,14.69337989]
[1744785245273,38.25597989,126.05,125.99,6.75597989]
[1744785245875,0.05052,126.03,126.01,0.06091398]
[1744785247179,7.9358,126.02,126.01,0.06091398]
[1744785250076,0.05052,126.03,126.01,0.06091398]
[1744785250077,7.98602,126.03,126.01,0.06091398]
[1744785251278,7.9358,126.02,126.01,0.06091398]
[1744785252075,7.937,126.01,125.99,6.75597989]
[1744785252279,7.937,126.01,125.98,6.75597989]
[1744785252677,7.937,126.01,125.98,14.69427989]
[1744785253275,7.98988023,126.01,125.98,14.74679563]
[1744785256782,7.9371,126.0,125.98,6.80849563]
[1744785256982,0.05288023,126.01,125.98,6.80849563]
[1744785257484,7.98968023,126.01,125.98,14.74659563]
[1744785260088,6.80886012,126.01,125.98,0.05251574]
[1744785260284,6.75597989,125.99,125.98,0.05251574]
[1744785260689,14.69367989,125.99,125.98,0.05251574]
[1744785260883,11.02597989,126.0,125.98,0.05251574]
[1744785261086,4.27,126.0,125.98,0.05251574]
[1744785261493,7.9374,126.0,125.98,0.05251574]
[1744785261885,8.86626012,126.01,125.98,0.05251574]
[1744785262889,7.9374,126.0,125.98,0.05251574]
[1744785264391,0.05288023,126.01,125.98,6.80849563]
[1744785264993,0.05288023,126.01,126.0,6.75597989]
[1744785265792,0.05288023,126.01,126.0,14.69307989]
[1744785267296,0.05288023,126.01,125.99,14.69347989]
[1744785267502,0.05288023,126.01,125.98,6.80849563]
[1744785267896,7.98948023,126.01,125.98,14.74649563]
[1744785268800,7.9372,126.0,125.98,14.74649563]
[1744785269599,7.9372,126.0,125.98,6.80849563]
[1744785270802,7.9372,126.0,125.98,14.74679563]
[1744785271102,7.98958023,126.01,125.98,14.74679563]
[1744785271802,0.05288023,126.01,125.99,7.9376]
[1744785274501,7.98958023,126.01,125.98,14.74659563]
[1744785276502,7.9372,126.0,125.98,6.80849563]
[1744785276805,0.05288023,126.01,125.98,0.05251574]
[1744785277204,6.75597989,126.0,125.98,0.05251574]
[1744785277401,7.9377,125.99,125.98,0.05251574]
[1744785277607,6.80886012,126.01,125.98,0.05251574]
[1744785278408,7.9374,126.0,125.98,0.05251574]
[1744785284608,0.05288023,126.01,125.98,0.05251574]
[1744785284813,38.13597989,126.0,125.98,0.05251574]
[1744785285016,40.20177989,126.0,125.94,6.75597989]
[1744785285715,7.9389,125.98,125.95,7.9401]
[1744785286216,7.9966658,125.98,125.95,7.99628007]
[1744785287312,7.9966658,125.98,125.95,14.75225996]
[1744785288119,7.9966658,125.98,125.95,6.81215996]
[1744785289918,7.9966658,125.98,125.95,14.75235996]
[1744785291220,0.0577658,125.98,125.96,7.9393]
[1744785291417,0.0577658,125.98,125.96,6.75597989]
[1744785291622,0.0577658,125.98,125.97,6.75597989]
[1744785291916,0.0577658,125.98,125.97,14.69497989]
[1744785292422,39.3152,126.03,125.97,6.75597989]
[1744785292618,39.3152,126.03,126.0,6.75597989]
[1744785293020,39.3152,126.03,126.0,7.9368]
[1744785293521,39.3152,126.03,126.0,7.98834061]
[1744785293719,39.37573144,126.03,126.0,7.98834061]
[1744785295624,7.9361,126.02,126.0,0.05154061]
[1744785297329,46.13201133,126.03,126.0,0.05154061]
[1744785297530,38.19651133,126.03,126.0,7.98844061]
[1744785298733,38.19651133,126.03,126.0,0.05154061]
[1744785299232,6.75597989,126.01,126.0,0.05154061]
[1744785299632,14.69247989,126.01,126.0,0.05154061]
[1744785299929,6.75597989,126.01,125.97,7.9387]
[1744785300130,6.75597989,126.0,125.97,7.9387]
[1744785300733,14.69337989,126.0,125.97,7.9387]
[1744785300930,14.74561895,126.0,125.97,7.99186397]
[1744785302736,6.80821895,126.0,125.98,7.9383]
[1744785302939,0.05223906,126.0,125.98,7.9383]
[1744785304138,7.98943906,126.0,125.97,7.99186397]
[1744785304834,0.05223906,126.0,125.97,0.05316397]
[1744785305039,0.05223906,126.0,125.97,6.80914386]
[1744785306539,0.05223906,126.0,125.98,7.9377]
[1744785306740,0.05223906,126.0,125.97,6.80914386]
[1744785307236,7.98943906,126.0,125.98,7.938]
[1744785307441,7.98943906,126.0,125.97,0.05316397]
[1744785308145,0.05223906,126.0,125.98,7.9381]
[1744785312039,7.98963906,126.0,125.97,7.99186397]
[1744785312945,0.05223906,126.0,125.98,7.9383]
[1744785313941,7.98953906,126.0,125.97,7.99186397]
[1744785314941,7.98953906,126.0,125.98,7.9383]
[1744785315335,0.05223906,126.0,125.97,6.80914386]
[1744785315540,0.05223906,126.0,125.99,6.75597989]
[1744785316240,0.05223906,126.0,125.99,14.69367989]
[1744785317642,0.05223906,126.0,125.99,7.9377]
[1744785320140,0.05223906,126.0,125.97,0.05316397]
[1744785320340,6.80821895,126.0,125.97,0.05316397]
[1744785320542,38.14821895,126.0,125.97,0.05316397]
[1744785320743,6.75597989,125.99,125.97,0.05316397]
[1744785320945,6.75597989,125.98,125.91,6.75597989]
[1744785321243,14.69737989,125.94,125.9,39.2829]
[1744785321445,14.69737989,125.94,125.9,31.34]
[1744785321943,14.69737989,125.94,125.91,7.9425]
[1744785322145,0.06078209,125.93,125.91,0.05699987]
[1744785322340,8.00228209,125.93,125.91,0.05699987]
[1744785322742,6.81676198,125.93,125.91,0.05699987]
[1744785322938,7.9421,125.92,125.91,0.05699987]
[1744785323647,7.944,125.9,125.87,31.34]
[1744785323835,2.17448209,125.93,125.89,6.75597989]
[1744785324041,2.1137,125.93,125.9,7.9434]
[1744785324545,2.1137,125.93,125.89,6.75597989]
[1744785324741,2.187,125.97,125.91,6.75597989]
[1744785324939,0.06023445,125.92,125.9,31.39180466]
[1744785325139,8.94297989,125.97,125.9,31.34]
[1744785325339,0.05891914,125.92,125.91,7.9428]
[1744785325643,0.05610654,125.93,125.9,31.39322371]
[1744785325842,0.05610654,125.93,125.92,7.9417]
[1744785326244,0.05610654,125.93,125.92,14.69767989]
[1744785331248,31.34,125.98,125.96,7.9394]
[1744785331449,31.34,126.01,125.96,6.75597989]
[1744785331645,38.09597989,126.01,125.96,6.75597989]
[1744785331845,7.9376,126.0,125.97,7.939]
[1744785332144,38.09597989,126.01,125.96,6.75597989]
[1744785332449,7.9379,125.99,125.97,0.05903011]
[1744785333548,7.99318598,126.0,125.97,0.05903011]
[1744785333748,14.74916587,126.0,125.97,0.05903011]
[1744785335949,7.9379,125.99,125.97,0.05903011]
[1744785340258,7.9384,125.98,125.97,0.05903011]
[1744785340448,6.75597989,125.98,125.93,38.09597989]
[1744785341157,7.9394,125.97,125.94,7.9406]
[1744785341459,7.99025942,125.97,125.94,7.99484202]
[1744785341760,7.9398,125.96,125.94,0.05424202]
[1744785342057,6.80683931,125.97,125.94,0.05424202]
[1744785342560,7.9401,125.96,125.94,0.05424202]
[1744785344056,7.9401,125.96,125.94,7.99504202]
[1744785345564,7.9401,125.96,125.94,0.05424202]
[1744785347963,0.05085942,125.97,125.94,6.81022191]
[1744785348358,0.05085942,125.97,125.95,7.9397]
[1744785350859,0.05085942,125.97,125.96,7.9396]
[1744785351470,0.05085942,125.97,125.94,0.05424202]
[1744785352467,0.05085942,125.97,125.94,7.99504202]
[1744785353170,0.05085942,125.97,125.94,0.05424202]
[1744785353171,6.75597989,125.96,125.94,0.05424202]
[1744785354171,7.9402,125.95,125.94,0.05424202]
[1744785356176,14.69617989,125.95,125.94,0.05424202]
[1744785358777,6.75597989,125.95,125.87,38.05597989]
[1744785358977,6.75597989,125.9,125.86,31.3]
[1744785359179,14.69997989,125.9,125.86,39.2456]
[1744785359477,14.69997989,125.9,125.86,31.3]
[1744785359672,6.75597989,125.92,125.87,6.75597989]
[1744785359876,7.9425,125.92,125.89,7.944]
[1744785360077,0.05073061,125.91,125.88,6.75597989]
[1744785360679,0.05073061,125.91,125.88,14.70027989]
[1744785360973,0.05073061,125.91,125.88,6.75597989]
[1744785361975,0.05073061,125.91,125.89,6.75597989]
[1744785362979,0.05073061,125.91,125.9,6.75597989]
[1744785363679,0.05073061,125.91,125.9,14.69937989]
[1744785365180,40.22507989,126.02,125.9,14.69597989]
[1744785365479,44.61427989,126.02,125.97,6.75597989]
[1744785365780,37.8583,126.02,125.97,6.75597989]
[1744785365977,44.61427989,126.02,125.97,6.75597989]
[1744785366178,7.9382,125.99,125.97,6.75597989]
[1744785366376,7.9382,125.99,125.98,0.05237226]
[1744785367378,6.81468106,126.01,125.98,0.05237226]
[1744785368981,0.05870117,126.01,125.98,14.74665215]
[1744785369181,0.05870117,126.01,125.98,6.80835215]
[1744785369480,7.9373,126.0,125.98,0.05237226]
[1744785370781,0.05870117,126.01,125.98,0.05237226]
[1744785372280,7.9377,125.99,125.98,0.05237226]
[1744785374879,6.75597989,125.99,125.94,38.07597989]
[1744785375079,7.9397,125.96,125.94,31.32]
[1744785375282,6.75597989,125.97,125.92,6.75597989]
[1744785375683,7.94,125.96,125.92,14.69767989]
[1744785375882,7.94,125.96,125.92,6.75597989]
[1744785376082,0.06025441,125.95,125.93,6.81643912]
[1744785376386,0.06025441,125.95,125.94,7.9409]
[1744785376683,6.75597989,126.01,125.94,38.01597989]
[1744785376884,6.75597989,126.01,125.95,6.75597989]
[1744785377585,6.75597989,126.01,125.95,14.69587989]
[1744785377785,0.05102084,125.99,125.97,0.05263576]
[1744785378490,7.9384,125.98,125.97,0.05263576]
[1744785381784,39.24902084,125.99,125.97,0.05263576]
[1744785381986,7.98902084,125.99,125.97,0.05263576]
[1744785384383,7.9384,125.98,125.97,0.05263576]
[1744785393899,7.98902084,125.99,125.97,0.05263576]
[1744785394095,0.05102084,125.99,125.97,0.05263576]
[1744785394397,7.98872084,125.99,125.97,0.05263576]
[1744785394698,0.05102084,125.99,125.98,6.75597989]
[1744785395296,0.05102084,125.99,125.98,14.69437989]